bitfinex/quotes_BTCUSD_20241120
["timestamp","ask_amount","ask_price","bid_price","bid_amount"]
[1732133215751,0.1249,94063.0,94062.0,0.129312]
[1732133216171,0.5,94073.0,94062.0,0.023]
[1732133216389,0.10711512,94072.0,94054.0,0.106321]
[1732133216593,0.08225208,94071.0,94055.0,0.023]
[1732133216796,0.10711512,94070.0,94055.0,0.023]
[1732133217019,0.10711512,94070.0,94051.0,0.0002]
[1732133217258,0.10641512,94070.0,94051.0,0.106524]
[1732133217461,0.10488682,94069.0,94056.0,0.023]
[1732133217632,0.10711512,94068.0,94056.0,0.023]
[1732133217849,0.10711512,94068.0,94055.0,0.023]
[1732133218238,0.0922553,94067.0,94059.0,0.023]
[1732133218441,0.10711512,94066.0,94057.0,0.023]
[1732133218651,0.10711512,94066.0,94057.0,0.106318]
[1732133218879,0.10711512,94066.0,94055.0,0.023]
[1732133219252,0.10711512,94066.0,94055.0,0.12932]
[1732133219707,0.10711512,94066.0,94057.0,0.023]
[1732133219878,0.10711512,94066.0,94055.0,0.12932]
[1732133220387,0.5,94073.0,94057.0,0.023]
[1732133220725,0.01,94084.0,94051.0,0.0002]
[1732133220726,0.0886,94082.0,94075.0,0.023]
[1732133220886,0.5,94087.0,94069.0,0.023]
[1732133221254,0.1249,94090.0,94089.0,0.106282]
[1732133221429,0.1249,94090.0,94089.0,0.129282]
[1732133221977,0.1249,94090.0,94089.0,0.023]
[1732133222179,0.1249,94090.0,94088.0,0.106282]
[1732133222435,0.1249,94090.0,94089.0,0.023]
[1732133222666,0.1249,94090.0,94089.0,0.129282]
[1732133223323,0.51,94107.0,94089.0,0.0571853]
[1732133223563,0.1248,94114.0,94103.0,0.02277947]
[1732133223564,0.1249,94111.0,94103.0,0.02277947]
[1732133223784,0.01682404,94119.0,94103.0,0.02277947]
[1732133223983,0.12393916,94119.0,94091.0,0.08256273]
[1732133224189,0.12393916,94119.0,94093.0,0.1]
[1732133224482,0.01682404,94119.0,94118.0,0.106249]
[1732133224692,0.5,94120.0,94119.0,0.106248]
[1732133225148,0.1249,94130.0,94128.0,0.106237]
[1732133225347,0.1249,94130.0,94127.0,0.106239]
[1732133225553,0.1249,94130.0,94129.0,0.023]
[1732133225722,0.1249,94130.0,94106.0,0.1]
[1732133225938,0.0005,94122.0,94121.0,0.106245]
[1732133226270,0.00024435,94122.0,94121.0,0.106245]
[1732133227068,0.00024435,94122.0,94121.0,0.1487445]
[1732133227284,0.00024435,94122.0,94121.0,0.2487445]
[1732133227732,0.00024435,94122.0,94121.0,0.43705962]
[1732133228653,3.5e-07,94122.0,94121.0,0.43705962]
[1732133228858,0.0017114,94139.0,94131.0,0.01]
[1732133229070,0.0017114,94139.0,94138.0,0.206227]
[1732133229274,0.0017114,94139.0,94138.0,0.33740423]
[1732133229482,0.0017114,94139.0,94138.0,0.33634212]
[1732133230592,0.0017114,94139.0,94138.0,0.229227]
[1732133234224,0.0017114,94139.0,94138.0,0.28840808]
[1732133234582,0.0017114,94139.0,94138.0,0.33634212]
[1732133237462,0.0017114,94139.0,94138.0,0.41154212]
[1732133239601,4e-07,94139.0,94138.0,0.42154212]
[1732133239816,4e-07,94139.0,94138.0,0.43354212]
[1732133240009,4e-07,94139.0,94138.0,0.53169527]
[1732133240251,4e-07,94139.0,94138.0,0.52969527]
[1732133241424,4e-07,94139.0,94138.0,0.57849527]
[1732133241787,4e-07,94139.0,94138.0,0.58049527]
[1732133241986,0.0008549,94190.0,94184.0,0.106175]
[1732133241987,0.0776,94188.0,94184.0,0.106175]
[1732133245079,0.5,94171.0,94154.0,0.106207]
[1732133245302,0.10711512,94170.0,94157.0,0.106205]
[1732133245532,0.10711512,94170.0,94158.0,0.106203]
[1732133245743,0.10711512,94170.0,94162.0,0.106199]
[1732133245958,0.10711512,94170.0,94141.0,0.212446]
[1732133246148,0.1249,94174.0,94159.0,0.106203]
[1732133246365,0.23201512,94174.0,94172.0,0.106187]
[1732133246578,0.23201512,94174.0,94173.0,0.106187]
[1732133246579,0.1249,94174.0,94173.0,0.106187]
[1732133246777,0.1249,94174.0,94169.0,0.023]
[1732133247002,0.10711512,94173.0,94139.0,0.106225]
[1732133247307,0.10711512,94173.0,94162.0,0.023]
[1732133247645,0.10711512,94173.0,94163.0,0.106198]
[1732133247849,0.10711512,94173.0,94162.0,0.023]
[1732133247850,0.02420151,94172.0,94162.0,0.023]
[1732133247995,0.13131663,94172.0,94161.0,0.023]
[1732133248174,0.02562166,94171.0,94165.0,0.106195]
[1732133249180,0.10711512,94172.0,94165.0,0.106195]
[1732133249380,0.10711512,94172.0,94166.0,0.106194]
[1732133249586,0.10711512,94172.0,94154.0,0.212416]
[1732133249829,0.0769,94181.0,94156.0,0.106206]
[1732133249990,0.10711512,94180.0,94177.0,0.106182]
[1732133250223,0.10711512,94180.0,94170.0,0.106189]
[1732133250462,0.10711512,94180.0,94155.0,0.02406193]
[1732133250662,0.10711512,94180.0,94169.0,0.023]
[1732133250804,0.19928706,94179.0,94159.0,0.106202]
[1732133251035,0.10711512,94178.0,94163.0,0.023]
[1732133251194,0.10906255,94177.0,94166.0,0.106195]
[1732133251390,0.21617767,94177.0,94167.0,0.023]
[1732133251643,0.21617767,94177.0,94163.0,0.023]
[1732133251789,0.231081,94179.0,94163.0,0.023]
[1732133251790,0.20481289,94176.0,94163.0,0.023]
[1732133251990,0.1262,94169.0,94156.0,0.023]
[1732133252199,0.10711512,94168.0,94155.0,0.023]
[1732133252420,0.10711512,94168.0,94156.0,0.023]
[1732133252623,0.07433151,94167.0,94156.0,0.023]
[1732133252825,0.106196,94165.0,94148.0,0.106214]
[1732133253123,0.01,94158.0,94123.0,0.106243]
[1732133253318,0.10711512,94157.0,94145.0,0.106218]
[1732133253802,0.10711512,94157.0,94123.0,0.21335812]
[1732133254016,0.18834751,94156.0,94140.0,0.106223]
[1732133254222,0.0764,94153.0,94133.0,0.106232]
[1732133254385,0.10711512,94152.0,94134.0,0.106231]
[1732133254722,0.0483,94136.0,94125.0,0.106241]
[1732133254948,0.0483,94136.0,94104.0,0.0769]
[1732133254949,0.0483,94136.0,94112.0,0.04339001]
[1732133255154,0.0483,94136.0,94114.0,0.106253]
[1732133255383,0.10711512,94135.0,94114.0,0.106253]
[1732133255919,0.10711512,94135.0,94120.0,0.106247]
[1732133256140,0.10711512,94135.0,94117.0,0.106249]
[1732133256341,0.10711512,94135.0,94123.0,0.106243]
[1732133256567,0.10711512,94135.0,94124.0,0.106242]
[1732133256795,0.08767151,94134.0,94124.0,0.106242]
[1732133256996,0.10711512,94133.0,94124.0,0.106242]
[1732133257245,0.10711512,94133.0,94123.0,0.023]
[1732133257395,0.10711512,94133.0,94114.0,0.106253]
[1732133257587,0.01604175,94132.0,94116.0,0.10625]
[1732133257912,0.01604175,94132.0,94104.0,0.04316601]
[1732133257913,0.10711512,94131.0,94104.0,0.04316601]
[1732133258239,0.0483,94136.0,94123.0,0.023]
[1732133258580,0.0483,94136.0,94135.0,0.10623]
[1732133258784,0.1249,94139.0,94136.0,0.106229]
[1732133259004,0.1249,94139.0,94138.0,0.106227]
[1732133259191,0.1249,94139.0,94132.0,0.106232]
[1732133259192,0.13739,94139.0,94132.0,0.106232]
[1732133259391,0.13739,94139.0,94133.0,0.023]
[1732133259589,0.13739,94139.0,94131.0,0.106234]
[1732133259590,0.13739,94139.0,94131.0,0.023]
[1732133259795,0.013739,94138.0,94131.0,0.129233]
[1732133259992,0.013739,94138.0,94130.0,0.106235]
[1732133259993,0.013739,94138.0,94133.0,0.023]
[1732133260268,0.1249,94139.0,94133.0,0.023]
[1732133260269,0.0138639,94137.0,94133.0,0.023]
[1732133260478,0.1249,94139.0,94136.0,0.106229]
[1732133260733,0.1249,94139.0,94138.0,0.129227]
[1732133262222,0.1249,94139.0,94136.0,0.023]
[1732133262354,0.13739,94139.0,94129.0,0.106236]
[1732133262672,0.13739,94139.0,94105.0,0.106264]
[1732133262673,0.5,94136.0,94106.0,0.1]
[1732133262888,0.5,94136.0,94105.0,0.106264]
[1732133262889,0.10624,94127.0,94113.0,0.106254]
[1732133263092,0.10624,94127.0,94105.0,0.106264]
[1732133263093,0.106239,94127.0,94112.0,0.106255]
[1732133263294,0.106243,94123.0,94108.0,0.10626]
[1732133263495,0.10711512,94123.0,94110.0,0.106258]
[1732133263755,0.10711512,94123.0,94113.0,0.106254]
[1732133263981,0.10711512,94123.0,94114.0,0.106253]
[1732133264184,0.10711512,94123.0,94114.0,0.212506]
[1732133264355,0.10711512,94123.0,94116.0,0.106251]
[1732133264561,0.10711512,94123.0,94113.0,0.106254]
[1732133264733,0.10711512,94123.0,94110.0,0.106258]
[1732133265414,0.10711512,94123.0,94112.0,0.106256]
[1732133265842,0.0799,94131.0,94121.0,0.106245]
[1732133265965,0.21335812,94123.0,94102.0,0.106267]
[1732133266166,0.10711512,94123.0,94111.0,0.106257]
[1732133266397,0.10711512,94123.0,94110.0,0.106258]
[1732133266741,0.21335812,94123.0,94101.0,0.1]
[1732133266940,0.10711512,94123.0,94102.0,0.106267]
[1732133267220,0.20069843,94123.0,94104.0,0.106265]
[1732133267527,0.20069843,94123.0,94110.0,0.106258]
[1732133267741,0.20069843,94123.0,94102.0,0.106267]
[1732133267964,0.31694143,94123.0,94083.0,0.106288]
[1732133268159,1.02889961,94123.0,94084.0,0.106287]
[1732133268382,0.076,94097.0,94083.0,0.106288]
[1732133268597,0.076,94097.0,94076.0,0.106296]
[1732133268598,0.076,94097.0,94077.0,0.106295]
[1732133268848,0.076,94097.0,94076.0,0.106296]
[1732133269045,0.076,94097.0,94086.0,0.106285]
[1732133269046,0.01175638,94096.0,94086.0,0.106285]
[1732133269194,0.076,94097.0,94052.0,0.18540564]
[1732133269195,0.01,94093.0,94052.0,0.18540564]
[1732133269394,0.5,94090.0,94074.0,0.106299]
[1732133269619,0.5,94090.0,94076.0,0.106296]
[1732133269620,0.19008203,94089.0,94076.0,0.106296]
[1732133269893,0.19008203,94089.0,94060.0,0.106315]
[1732133270123,0.10711512,94089.0,94061.0,0.00106301]
[1732133270325,0.5,94090.0,94062.0,0.10711512]
[1732133270563,0.5,94090.0,94086.0,0.106285]
[1732133270762,0.5,94090.0,94089.0,0.129282]
[1732133271743,0.01,94089.0,94056.0,0.1]
[1732133271944,0.0440844,94090.0,94086.0,0.106284]
[1732133272167,0.076,94097.0,94076.0,0.106297]
[1732133272330,0.076,94097.0,94096.0,0.106274]
[1732133272530,0.076,94097.0,94070.0,0.18540564]
[1732133272531,0.076,94097.0,94094.0,0.212551]
[1732133272734,0.1249,94103.0,94096.0,0.106273]
[1732133272972,0.1249,94103.0,94100.0,0.106269]
[1732133273164,0.1249,94103.0,94101.0,0.106268]
[1732133273387,0.1249,94103.0,94099.0,0.023]
[1732133273542,0.1249,94103.0,94098.0,0.106271]
[1732133273762,0.03268659,94102.0,94100.0,0.106269]
[1732133273963,0.1249,94103.0,94099.0,0.023]
[1732133274389,0.1249,94103.0,94086.0,0.106284]
[1732133274390,0.5,94099.0,94066.0,0.1]
[1732133274590,0.18031663,94098.0,94058.0,0.01]
[1732133274815,0.18031663,94098.0,94085.0,0.106286]
[1732133275048,0.18031663,94098.0,94085.0,0.10588563]
[1732133275245,0.28658863,94098.0,94085.0,0.10588563]
[1732133275609,0.01426628,94097.0,94085.0,0.10588563]
[1732133275827,0.10711512,94096.0,94088.0,0.106282]
[1732133276185,0.10711512,94096.0,94086.0,0.21257]
[1732133276468,0.5,94099.0,94066.0,0.129308]
[1732133276619,0.5,94099.0,94098.0,0.106272]
[1732133277173,0.5,94099.0,94096.0,0.106273]
[1732133277628,0.5,94099.0,94096.0,0.212546]
[1732133277812,0.5,94099.0,94096.0,0.106273]
[1732133278182,0.1249,94103.0,94097.0,0.106273]
[1732133278356,0.1249,94103.0,94092.0,0.106278]
[1732133278557,0.1249,94103.0,94097.0,0.106272]
[1732133278785,0.1249,94103.0,94093.0,0.235554]
[1732133278995,0.1249,94103.0,94095.0,0.106275]
[1732133279169,0.1249,94103.0,94093.0,0.129277]
[1732133279170,0.19543,94103.0,94093.0,0.129277]
[1732133279385,0.19543,94103.0,94097.0,0.106273]
[1732133279587,0.1249,94103.0,94097.0,0.106273]
[1732133279769,0.1249,94103.0,94093.0,0.129277]
[1732133279770,0.1249,94103.0,94093.0,0.023]
[1732133279974,0.1249,94103.0,94102.0,0.106267]
[1732133280335,0.1249,94103.0,94094.0,0.106276]
[1732133280557,0.02053,94102.0,94098.0,0.106271]
[1732133280671,0.0804,94108.0,94102.0,0.106267]
[1732133280877,0.0804,94108.0,94090.0,0.042508]
[1732133280878,0.0804,94108.0,94107.0,0.106262]
[1732133281291,0.0804,94108.0,94104.0,0.106264]
[1732133282156,0.0804,94108.0,94105.0,0.106263]
[1732133282383,0.0804,94108.0,94104.0,0.106264]
[1732133282584,0.0804,94108.0,94102.0,0.106266]
[1732133282787,0.0804,94108.0,94103.0,0.023]
[1732133283198,0.0804,94108.0,94101.0,0.023]
[1732133283427,0.0735256,94107.0,94103.0,0.106266]
[1732133284004,0.0735256,94107.0,94101.0,0.129267]
[1732133284206,0.0735256,94107.0,94101.0,0.023]
[1732133284638,0.0804,94108.0,94101.0,0.129268]
[1732133284838,0.0804,94108.0,94101.0,0.023]
[1732133285308,0.0804,94108.0,94101.0,0.129268]
[1732133285519,0.0804,94108.0,94101.0,0.023]
[1732133285755,0.0629,94107.0,94101.0,0.023]
[1732133285919,0.0629,94107.0,94101.0,0.129268]
[1732133286126,0.0629,94107.0,94103.0,0.106265]
[1732133286342,0.0804,94108.0,94101.0,0.023]
[1732133286711,0.0804,94108.0,94103.0,0.023]
[1732133286913,0.1433,94108.0,94103.0,0.023]
[1732133287253,0.0804,94108.0,94107.0,0.106262]
[1732133287456,0.0804,94108.0,94104.0,0.106265]
[1732133288345,0.0804,94108.0,94105.0,0.106263]
[1732133288547,0.0804,94108.0,94102.0,0.023]
[1732133289044,0.0804,94108.0,94104.0,0.106265]
[1732133289398,0.0804,94108.0,94102.0,0.023]
[1732133289605,0.0804,94108.0,94105.0,0.106264]
[1732133289606,0.1036364,94108.0,94105.0,0.106264]
[1732133289808,0.0804,94108.0,94105.0,0.106264]
[1732133290216,0.0804,94108.0,94107.0,0.106262]
[1732133290447,0.0804,94108.0,94103.0,0.106266]
[1732133290651,0.0804,94108.0,94101.0,0.023]
[1732133290860,0.0804,94108.0,94105.0,0.106263]
[1732133291320,0.0804,94108.0,94105.0,0.212526]
[1732133291579,0.1249,94117.0,94116.0,0.106251]
[1732133291787,0.5,94133.0,94132.0,0.106233]
[1732133291961,0.0489,94139.0,94138.0,0.106227]
[1732133292180,0.0808,94140.0,94132.0,0.12126674]
[1732133292181,0.0808,94140.0,94139.0,0.106225]
[1732133292317,0.0808,94140.0,94139.0,0.22749174]
[1732133292525,0.5,94143.0,94142.0,0.106222]
[1732133292727,0.5,94143.0,94138.0,0.1849581]
[1732133292728,0.68369512,94143.0,94138.0,0.1849581]
[1732133292935,0.10711512,94142.0,94141.0,0.106223]
[1732133293368,0.10711512,94142.0,94138.0,0.1849581]
[1732133293369,0.082,94148.0,94145.0,0.106218]
[1732133293741,0.18911512,94148.0,94144.0,0.10622]
[1732133293924,0.18911512,94148.0,94144.0,0.106219]
[1732133294146,0.18911512,94148.0,94145.0,0.106218]
[1732133294361,0.18911512,94148.0,94144.0,0.106219]
[1732133294781,0.18911512,94148.0,94138.0,0.2911841]
[1732133294984,0.18911512,94148.0,94144.0,0.10622]
[1732133295826,0.18911512,94148.0,94146.0,0.106217]
[1732133296065,0.18911512,94148.0,94139.0,0.106225]
[1732133296502,0.106222,94143.0,94129.0,0.023]
[1732133296708,0.10711512,94142.0,94129.0,0.023]
[1732133296918,0.10711512,94142.0,94129.0,0.129236]
[1732133297124,0.07864066,94141.0,94129.0,0.129236]
[1732133297546,0.07864066,94141.0,94130.0,0.106235]
[1732133297754,0.07864066,94141.0,94131.0,0.023]
[1732133297958,0.07864066,94141.0,94130.0,0.106235]
[1732133298163,0.06857558,94140.0,94131.0,0.023]
[1732133298366,0.06857558,94140.0,94129.0,0.023]
[1732133298570,0.06857558,94140.0,94129.0,0.129236]
[1732133298796,0.10711512,94142.0,94129.0,0.023]
[1732133298797,0.07819097,94139.0,94129.0,0.023]
[1732133299053,0.07819097,94139.0,94118.0,0.1849581]
[1732133299054,0.10711512,94138.0,94118.0,0.1849581]
[1732133299276,0.10711512,94138.0,94109.0,0.106259]
[1732133299277,0.1244,94130.0,94109.0,0.1849581]
[1732133299491,0.106239,94128.0,94112.0,0.106256]
[1732133299700,0.10711512,94127.0,94113.0,0.106255]
[1732133299905,0.21617767,94127.0,94111.0,0.106257]
[1732133300143,0.5,94120.0,94108.0,0.10626]
[1732133300417,0.5,94120.0,94108.0,0.1849581]
[1732133300418,0.10711512,94119.0,94108.0,0.1849581]
[1732133300639,0.10711512,94119.0,94115.0,0.106252]
[1732133300867,0.10711512,94119.0,94108.0,0.1849581]
[1732133301068,0.10711512,94119.0,94113.0,0.208508]
[1732133301283,0.10711512,94119.0,94108.0,0.1849581]
[1732133301508,0.10711512,94119.0,94100.0,0.1866683]
[1732133301706,0.05560235,94118.0,94101.0,0.106268]
[1732133301914,0.19563587,94117.0,94103.0,0.106265]
[1732133302330,0.19563587,94117.0,94100.0,0.1866683]
[1732133302331,0.19563587,94117.0,94105.0,0.106263]
[1732133302746,0.10711512,94117.0,94100.0,0.1866683]
[1732133302954,0.10711512,94117.0,94105.0,0.106264]
[1732133303245,0.10711512,94117.0,94101.0,0.023]
[1732133303462,0.01,94134.0,94116.0,0.1849581]
[1732133303675,0.10711512,94128.0,94126.0,0.106239]
[1732133303888,0.09494854,94141.0,94128.0,0.106238]
[1732133303889,0.5,94140.0,94128.0,0.106238]
[1732133304108,0.0467,94141.0,94128.0,0.106238]
[1732133304540,0.5,94134.0,94128.0,0.106238]
[1732133304974,0.5,94148.0,94126.0,0.1849581]
[1732133305191,0.21617767,94147.0,94139.0,0.106225]
[1732133305408,1.04435818,94160.0,94146.0,0.1849581]
[1732133305625,1.04435818,94160.0,94155.0,0.106207]
[1732133305626,0.10711512,94156.0,94155.0,0.106207]
[1732133306034,0.10711512,94156.0,94147.0,0.212432]
[1732133306256,0.0467,94167.0,94156.0,0.106206]
[1732133306465,0.0467,94167.0,94155.0,0.1849581]
[1732133306713,0.01257555,94156.0,94147.0,0.023]
[1732133306919,0.5,94161.0,94148.0,0.106215]
[1732133307132,0.5,94161.0,94145.0,0.023]
[1732133307337,0.06343105,94157.0,94147.0,0.129216]
[1732133307536,0.06343105,94157.0,94146.0,0.106217]
[1732133307753,0.06343105,94157.0,94148.0,0.106215]
[1732133307983,0.06343105,94157.0,94148.0,0.106214]
[1732133308180,0.06343105,94157.0,94148.0,0.106215]
[1732133308294,0.161464,94156.0,94142.0,0.1849581]
[1732133308501,0.161464,94156.0,94145.0,0.106218]
[1732133308920,0.161464,94156.0,94142.0,0.2911791]
[1732133309154,0.08934205,94155.0,94142.0,0.1849581]
[1732133309382,0.10711512,94154.0,94143.0,0.106221]
[1732133309585,0.10711512,94154.0,94142.0,0.1849581]
[1732133309586,0.5,94151.0,94142.0,0.1849581]
[1732133309795,0.10711512,94150.0,94134.0,0.1849581]
[1732133309998,0.5,94141.0,94126.0,0.1849581]
[1732133310807,0.5,94128.0,94118.0,0.1849581]
[1732133311010,0.10711512,94127.0,94118.0,0.1849581]
[1732133311218,0.1228384,94127.0,94118.0,0.1849581]
[1732133311421,0.1228384,94127.0,94110.0,0.1849581]
[1732133311828,0.1228384,94127.0,94119.0,0.106247]
[1732133312181,0.10711512,94127.0,94118.0,0.1849581]
[1732133312346,0.5,94128.0,94124.0,0.106242]
[1732133312548,0.5,94134.0,94126.0,0.1849581]
[1732133312928,0.1249,94139.0,94126.0,0.1849581]
[1732133313144,0.10711512,94138.0,94124.0,0.106242]
[1732133313282,0.10711512,94138.0,94133.0,0.106232]
[1732133313482,0.10711512,94138.0,94127.0,0.1849581]
[1732133313483,0.1249,94139.0,94127.0,0.1849581]
[1732133313686,0.1249,94139.0,94103.0,0.05316556]
[1732133313687,0.0008555,94157.0,94137.0,0.1849581]
[1732133313913,0.5,94149.0,94148.0,0.106215]
[1732133314113,0.1249,94156.0,94145.0,0.1849581]
[1732133314385,0.1249,94156.0,94155.0,0.106207]
[1732133314811,0.1249,94156.0,94154.0,0.106208]
[1732133314939,0.1249,94156.0,94153.0,0.1849581]
[1732133315149,0.1249,94156.0,94153.0,0.2911671]
[1732133315342,0.1249,94156.0,94153.0,0.1849581]
[1732133315550,0.1249,94156.0,94153.0,0.2911681]
[1732133315755,0.1249,94156.0,94154.0,0.106208]
[1732133315984,0.1249,94156.0,94148.0,0.1849581]
[1732133316202,0.11969067,94155.0,94139.0,0.106225]
[1732133316359,0.11969067,94155.0,94138.0,0.1849581]
[1732133316360,0.13075362,94154.0,94138.0,0.1849581]
[1732133316561,0.10711512,94153.0,94137.0,0.106228]
[1732133316760,0.10711512,94153.0,94139.0,0.106224]
[1732133316981,0.02699908,94152.0,94139.0,0.106224]
[1732133317206,0.02699908,94152.0,94137.0,0.106228]
[1732133317207,0.10711512,94151.0,94140.0,0.106224]
[1732133317562,0.10711512,94151.0,94137.0,0.106228]
[1732133317784,0.5,94149.0,94134.0,0.10623]
[1732133317983,0.10711512,94148.0,94130.0,0.129236]
[1732133318188,0.17260071,94148.0,94130.0,0.023]
[1732133318394,0.212433,94147.0,94130.0,0.023]
[1732133318591,0.10711512,94146.0,94130.0,0.023]
[1732133318792,0.10711512,94146.0,94129.0,0.1849581]
[1732133318793,0.10711512,94146.0,94120.0,0.1849581]
[1732133319019,0.5,94138.0,94124.0,0.106242]
[1732133319218,0.5,94138.0,94120.0,0.1849581]
[1732133319219,0.10711512,94137.0,94120.0,0.1849581]
[1732133319444,0.59201889,94147.0,94120.0,0.1849581]
[1732133319654,0.10711512,94146.0,94135.0,0.106229]
[1732133319856,0.10711512,94146.0,94135.0,0.212458]
[1732133320101,0.06422803,94145.0,94135.0,0.106229]
[1732133320296,0.10711512,94144.0,94131.0,0.023]
[1732133320505,0.06713432,94143.0,94131.0,0.023]
[1732133320710,0.10711512,94144.0,94131.0,0.106234]
[1732133320910,0.10711512,94144.0,94130.0,0.023]
[1732133320911,0.10711512,94144.0,94136.0,0.106228]
[1732133321317,0.10711512,94144.0,94130.0,0.129235]
[1732133321520,0.01071151,94143.0,94130.0,0.023]
[1732133321718,0.01071151,94143.0,94131.0,0.106234]
[1732133321922,0.5,94139.0,94132.0,0.106232]
[1732133322121,0.10711512,94138.0,94137.0,0.106228]
[1732133322326,0.0017116,94148.0,94130.0,0.023]
[1732133322530,0.10711512,94147.0,94130.0,0.023]
[1732133322730,0.5,94139.0,94129.0,0.1849581]
[1732133322934,0.10711512,94138.0,94121.0,0.023]
[1732133323158,0.15711512,94138.0,94125.0,0.106241]
[1732133323381,0.02054387,94137.0,94132.0,0.05]
[1732133323560,0.10711512,94136.0,94132.0,0.05]
[1732133326338,0.10623,94135.0,94132.0,0.05]
[1732133326650,0.10711512,94134.0,94132.0,0.05]
[1732133326866,0.1083044,94133.0,94132.0,0.05]
[1732133327068,0.21541952,94133.0,94132.0,0.05]
[1732133329002,0.32165152,94133.0,94132.0,0.05]
[1732133329435,0.21541952,94133.0,94132.0,0.05]
[1732133330786,0.32165152,94133.0,94132.0,0.05]
[1732133330958,0.21541952,94133.0,94132.0,0.05]
[1732133331321,0.32165152,94133.0,94132.0,0.05]
[1732133333072,0.10711512,94133.0,94132.0,0.05]
[1732133333271,0.21334712,94133.0,94132.0,0.05]
[1732133333650,0.10711512,94133.0,94132.0,0.05]
[1732133335435,0.10211512,94133.0,94132.0,0.05]
[1732133336238,0.20834712,94133.0,94132.0,0.05]
[1732133336987,0.10211512,94133.0,94132.0,0.05]
[1732133337593,0.21117767,94133.0,94132.0,0.05]
[1732133339445,0.31740967,94133.0,94132.0,0.05]
[1732133340190,0.33740967,94133.0,94132.0,0.05]
[1732133340409,0.33940967,94133.0,94132.0,0.05]
[1732133340821,0.32940967,94133.0,94132.0,0.05]
[1732133341714,0.32740967,94133.0,94132.0,0.05]
[1732133342796,0.20834712,94133.0,94132.0,0.05]
[1732133342996,0.60211512,94133.0,94132.0,0.05]
[1732133344189,0.70834712,94133.0,94132.0,0.05]
[1732133345086,0.70834712,94133.0,94132.0,0.0508555]
[1732133345301,0.60211512,94133.0,94132.0,0.0508555]
[1732133345602,0.72336328,94133.0,94132.0,0.0508555]
[1732133346146,0.61713128,94133.0,94132.0,0.0508555]
[1732133346526,0.72336328,94133.0,94132.0,0.0508555]
[1732133347068,0.61713128,94133.0,94132.0,0.0508555]
[1732133347610,0.72336328,94133.0,94132.0,0.0508555]
[1732133348419,0.61713128,94133.0,94132.0,0.0508555]
[1732133348591,0.60211512,94133.0,94132.0,0.0508555]
[1732133349467,0.5,94133.0,94132.0,0.0508555]
[1732133350925,0.60711512,94133.0,94132.0,0.0508555]
[1732133351136,0.84534712,94133.0,94132.0,0.0508555]
[1732133351337,0.33534712,94133.0,94132.0,0.0508555]
[1732133351538,0.94440967,94133.0,94132.0,0.0508555]
[1732133351740,0.95440967,94133.0,94132.0,0.0508555]
[1732133351940,0.87787636,94133.0,94132.0,0.0508555]
[1732133352145,0.88787636,94133.0,94132.0,0.0508555]
[1732133352373,0.87787636,94133.0,94132.0,0.0508555]
[1732133352746,0.88787636,94133.0,94132.0,0.0508555]
[1732133353866,1.35723454,94133.0,94132.0,0.0508555]
[1732133354272,1.46629709,94133.0,94132.0,0.0508555]
[1732133355111,1.46629709,94133.0,94109.0,0.106259]
[1732133355112,0.5,94117.0,94109.0,0.106259]
[1732133355331,0.10711512,94116.0,94111.0,0.106256]
[1732133355561,0.10711512,94116.0,94109.0,0.106259]
[1732133355562,0.10711512,94116.0,94112.0,0.106256]
[1732133355814,0.10711512,94116.0,94109.0,0.106259]
[1732133356459,0.16782663,94116.0,94109.0,0.212517]
[1732133356682,0.10711512,94116.0,94109.0,0.212517]
[1732133356915,0.10711512,94116.0,94110.0,0.106258]
[1732133357892,0.10711512,94116.0,94112.0,0.106255]
[1732133358124,0.10711512,94116.0,94106.0,0.106262]
[1732133358356,0.5,94105.0,94100.0,0.0017102]
[1732133358564,0.10711512,94104.0,94100.0,0.0017102]
[1732133359214,0.106268,94101.0,94100.0,0.0017102]
[1732133359414,0.21338312,94101.0,94100.0,0.0017102]
[1732133361231,0.60711512,94101.0,94100.0,0.0017102]
[1732133361528,0.71338312,94101.0,94100.0,0.0017102]
[1732133361715,0.79109839,94101.0,94100.0,0.0017102]
[1732133362501,1.0639164,94101.0,94100.0,0.0017102]
[1732133362968,0.700885,94086.0,94085.0,0.0008561]
[1732133363189,2.00598629,94086.0,94085.0,0.0008561]
[1732133363463,2.00598629,94086.0,94059.0,0.0008557]
[1732133363464,0.606315,94060.0,94059.0,0.0008557]
[1732133363744,0.73201512,94060.0,94059.0,0.0008557]
[1732133363951,0.83833012,94060.0,94059.0,0.0008557]
[1732133364209,0.73201512,94060.0,94059.0,0.0008557]
[1732133364429,0.84107767,94060.0,94059.0,0.0008557]
[1732133364661,0.73201512,94060.0,94059.0,0.0008557]
[1732133367086,0.83833012,94060.0,94059.0,0.0008557]
[1732133367317,0.84833012,94060.0,94059.0,0.0008557]
[1732133368126,0.98496106,94060.0,94059.0,0.0008557]
[1732133368321,0.98696106,94060.0,94059.0,0.0008557]
[1732133368510,1.09602361,94060.0,94059.0,0.0008557]
[1732133369304,1.69028179,94060.0,94059.0,0.0018557]
[1732133369937,0.478319,94056.0,94051.0,0.0002]
[1732133370139,0.67452657,94056.0,94051.0,0.0002]
[1732133370359,0.69667301,94056.0,94051.0,0.0002]
[1732133370554,0.92252657,94056.0,94051.0,0.0002]
[1732133370750,0.89414563,94056.0,94051.0,0.0002]
[1732133370920,0.92452657,94056.0,94051.0,0.0002]
[1732133371379,0.83343412,94056.0,94051.0,0.0002]
[1732133372304,0.83543412,94056.0,94051.0,0.0002]
[1732133373335,0.86381506,94056.0,94051.0,0.0002]
[1732133373733,0.86181506,94056.0,94051.0,0.0002]
[1732133373934,0.83343412,94056.0,94051.0,0.0002]
[1732133374198,0.94249667,94056.0,94051.0,0.0002]
[1732133374514,0.94449667,94056.0,94051.0,0.0002]
[1732133374714,0.97087761,94056.0,94051.0,0.0002]